Cogmind - Beta 15 @@@ ROGUE MODE // 2025.09.14 @ 14:00:38 Player: potator Result: Self-destructed Performance ------------- Evolutions (3) 1500 Regions Visited (6) 1200 Robots Destroyed (36) 180 Value Destroyed (1045) 1045 Prototype IDs (26) 520 Alien Tech Used (0) 0 Bonus (300) 300 TOTAL SCORE: 4745 Bonus ------- Aligned with FarCom 300 Cogmind --------- Core Integrity 582/700 Matter 5/300 Energy 290/290 System Corruption 5% Temperature Cool (0) Movement Walking (90) Location -7/Factory Parts ------- > --- POWER (2) -------- Improved Deuterium Engine > --- PROPULSION (2) --- Potential Leg Potential Leg > --- UTILITY (6) ------ Small Storage Unit Structural Scanner ECM Suite Advanced Hardlight Generator Hacking Suite > --- WEAPON (3) ------- Precision Assault Rifle > --- INVENTORY (8) ---- Experimental Sensor Array Particle Charger Propulsion Shielding Improved Shield Generator Improved Grenade Launcher Mining Laser Peak State ------------ > --- POWER ------------ Light Deuterium Engine Light Nuclear Core > --- PROPULSION ------- Potential Leg Potential Leg > --- UTILITY ---------- Small Storage Unit Structural Scanner ECM Suite Advanced Hardlight Generator Shield Generator Hacking Suite > --- WEAPON ----------- Autogun Autogun Minigun > --- INVENTORY -------- Light Treads Experimental Sensor Array Particle Charger Propulsion Shielding Assault Rifle Improved Assault Rifle Improved Grenade Launcher Mining Laser [Rating: 50] Favorites ----------- Power Ion Engine Engine Ion Engine Power Core Light Nuclear Core Propulsion Potential Leg Treads Light Treads Leg Potential Leg Utility Small Storage Unit Device Structural Scanner Storage Small Storage Unit Hackware Hacking Suite Protection Propulsion Shielding Weapon Improved Assault Rifle Ballistic Gun Improved Assault Rifle Launcher Rocket Launcher Build | -11 -10 -10 -10 -9 -8 -7 ------- Run | Yrd Mat Min Exi Min Mat Fac Slots Evolved 6 | . . . . . 4 2 Power 1 | . . . . . 1 . Propulsion . | . . . . . . . Utility 4 | . . . . . 2 2 Weapon 1 | . . . . . 1 . Parts Attached 31 | 6 8 . 2 1 8 6 Power 7 | 1 3 . . . 2 1 Engine 5 | 1 2 . . . 1 1 Core 2 | . 1 . . . 1 . Reactor . | . . . . . . . Propulsion 4 | 2 . . 2 . . . Treads 2 | 2 . . . . . . Leg 2 | . . . 2 . . . Wheel . | . . . . . . . Hover . | . . . . . . . Flight . | . . . . . . . Utility 9 | 1 2 . . . 3 3 Device 6 | . 1 . . . 3 2 Storage 1 | 1 . . . . . . Processor . | . . . . . . . Hackware 1 | . . . . . . 1 Protection 1 | . 1 . . . . . Artifact . | . . . . . . . Weapon 11 | 2 3 . . 1 3 2 Energy Gun . | . . . . . . . Energy Cannon . | . . . . . . . Ballistic Gun 9 | 2 3 . . 1 2 1 Ballistic Cannon . | . . . . . . . Launcher 2 | . . . . . 1 1 Special Weapon . | . . . . . . . Impact Weapon . | . . . . . . . Slashing Weapon . | . . . . . . . Piercing Weapon . | . . . . . . . Special Melee Weapon . | . . . . . . . Unidentified Prototypes 3 | . 1 . . . 1 1 Parts Lost 9 | . 2 . . 1 1 5 Power 3 | . 1 . . . . 2 Propulsion 1 | . 1 . . . . . Utility 1 | . . . . . 1 . Weapon 4 | . . . . 1 . 3 Highest Loss Streak 4 | . 1 . . 1 1 4 To Critical Strikes . | . . . . . . . Average Backups 6 | 3 4 6 7 7 6 6 Power . | . . . . . . . Propulsion . | 1 . . . 1 1 . Utility 2 | . 1 2 2 2 2 3 Weapon 3 | 1 3 4 5 4 3 2 Tool/Special . | . . . . . . . Unused Backups 5 | . . 1 . 1 . 3 Power . | . . . . . . . Propulsion . | . . . . . . . Utility 2 | . . . . . . 2 Weapon 3 | . . 1 . 1 . 1 Tool/Special . | . . . . . . . Average Slot Usage (%) 89 | . 91 85 89 100 93 78 Engine 10 | . 11 14 14 14 10 6 Core 1 | . 2 . . . 2 2 Treads 9 | . 25 14 9 . . . Leg 10 | . . . 9 28 18 14 Device 17 | . 8 14 14 14 26 21 Storage 11 | . 14 14 14 14 9 7 Hackware 1 | . . . . . . 6 Ballistic Gun 25 | . 27 28 28 28 26 17 Peak Build Rating 50 | 6 13 10 30 30 40 50 Average Rating 24 | 1 10 10 16 28 35 43 On Entrance 17 | . 6 10 10 30 29 38 Naked Turns . | . . . . . . . Heaviest Build 37 | 14 17 17 17 17 29 37 Greatest Support 60 | 40 40 20 60 60 60 60 Greatest Overweight (x) . | . . . . . . . Average Overweight (x) . | . . . . . . . Largest Inventory Capacity 8 | 8 8 8 8 8 8 8 Average Capacity 7 | 5 8 8 8 8 8 8 Most Carried 8 | 5 7 7 8 8 8 8 Average Carried 6 | 3 4 6 7 7 6 6 Final Capacity 8 | 8 8 8 8 8 8 8 Final Carried 8 | . 6 7 8 8 8 6 Class Distribution -------------------- 54% | Mutant 34% | Infiltrator-Skirmisher 11% | Infiltrator-Mutant Dominant Class ---------------- Mutant | -10/Materials Mutant | -10/Mines Mutant | -10/Exiles Mutant | -9/Mines Infiltrator-Skirmisher | -8/Materials Infiltrator-Mutant | -7/Factory Resources | -11 -10 -10 -10 -9 -8 -7 ----------- Run | Yrd Mat Min Exi Min Mat Fac Matter Collected 1141 | 223 302 51 . 141 361 63 Remotely . | . . . . . . . Salvage Created 1191 | . 604 . . 96 428 63 Parts 78 | . 40 . . 6 30 2 Haulers Intercepted . | . . . . . . . Recyclers Shooed . | . . . . . . . Parts Field Recycled . | . . . . . . . Retrieved Matter . | . . . . . . . Parts Self-Destructed . | . . . . . . . Prevented . | . . . . . . . Kills | -11 -10 -10 -10 -9 -8 -7 ------- Run | Yrd Mat Min Exi Min Mat Fac Combat Hostiles Destroyed 26 | . 15 . . 2 8 1 Guns 26 | . 15 . . 2 8 1 Classes Destroyed 9 | . 5 . . . 3 1 Worker 2 | . 1 . . . 1 . Tunneler 1 | . . . . . 1 . Operator 1 | . 1 . . . . . Watcher 6 | . 3 . . . 3 . Swarmer 6 | . 3 . . . 3 . Grunt 16 | . 12 . . 2 2 . Duelist 1 | . . . . . . 1 Sentry 2 | . . . . . 2 . Hunter 1 | . . . . . 1 . Best Kill Streak 5 | . 5 . . 2 4 1 Combat Bots Only 5 | . 5 . . 2 3 1 Max Kills in Single Turn 2 | . 2 . . 1 1 1 Gunslinging 1 | . 1 . . . . . Exploded . | . . . . . . . Melee . | . . . . . . . Uniques/NPCs Destroyed . | . . . . . . . Combat | -11 -10 -10 -10 -9 -8 -7 -------- Run | Yrd Mat Min Exi Min Mat Fac Hostile Shots Fired 196 | . 78 . . 9 51 58 Missed 47 | . 12 . . 1 11 23 Hits 149 | . 66 . . 8 40 35 Melee 9 | . . . . . . 9 Projectile 140 | . 66 . . 8 40 26 Critical Strikes 12 | . 2 . . 1 2 7 Part Disruptions 1 | . . . . . . 1 Damage Taken 1993 | . 745 . . 98 417 733 Core 263 | . 99 . . . 46 118 Absorbed by Shields 135 | . . . . . 135 . Regen/Repaired (Parts) 55 | . 55 . . . . . Core Remaining (%) 83 | 100 . . . 60 91 . Volleys Fired 113 | . 52 . . 5 38 18 Largest 3 | . 2 . . 2 3 3 Hottest 71 | . 46 . . 46 71 71 Shots Fired 262 | . 104 . . 10 114 34 Gun 262 | . 104 . . 10 114 34 Cannon . | . . . . . . . Launcher . | . . . . . . . Special . | . . . . . . . Kinetic 262 | . 104 . . 10 114 34 Thermal . | . . . . . . . Explosive . | . . . . . . . Electromagnetic . | . . . . . . . Robot Hit Streak 19 | . 11 . . 15 19 8 Robot Miss Streak 6 | . 4 . . . 6 3 Penetration Max . | . . . . . . . Secondary Targets 4 | . 4 . . . . . Max Gunslinging Chain 1 | . 1 . . . . . Shots Hit Robots 165 | . 66 . . 7 67 25 Core Hits 67 | . 34 . . 3 24 6 Critical Kills . | . . . . . . . Critical Parts Destroyed 1 | . . . . . 1 . Critical Strikes 1 | . . . . . 1 . Destroy 1 | . . . . . 1 . Melee Attacks . | . . . . . . . Impact . | . . . . . . . Slashing . | . . . . . . . Piercing . | . . . . . . . Sneak Attacks . | . . . . . . . Combat Hostiles . | . . . . . . . Follow-up Attacks . | . . . . . . . Damage Inflicted 2569 | . 988 . . 125 1021 435 Guns 2569 | . 988 . . 125 1021 435 Cannons . | . . . . . . . Explosions . | . . . . . . . Melee . | . . . . . . . Ramming . | . . . . . . . Kinetic 2569 | . 988 . . 125 1021 435 Thermal . | . . . . . . . Explosive . | . . . . . . . Electromagnetic . | . . . . . . . Impact . | . . . . . . . Slashing . | . . . . . . . Piercing . | . . . . . . . Highest Corruption 5 | . . . . . 2 5 Average Corruption 1 | . . . . . 2 1 Corruption Purged . | . . . . . . . Corruption Blocked . | . . . . . . . Effects 1 | . . . . . . 1 Data Loss (minor) 1 | . . . . . . 1 Overload Shots . | . . . . . . . Overflow Damage . | . . . . . . . Projectiles . | . . . . . . . Explosions . | . . . . . . . Melee . | . . . . . . . Knockbacks . | . . . . . . . Impact . | . . . . . . . Kinetic . | . . . . . . . Secondary . | . . . . . . . Self-Inflicted Damage . | . . . . . . . Shots . | . . . . . . . Rammed . | . . . . . . . Targets Rammed . | . . . . . . . Kicked . | . . . . . . . Crushed . | . . . . . . . Highest Temperature 217 | . 22 . . 43 217 63 Average Temperature 46 | . 7 . . 28 67 38 Received Heat Transfer 568 | . 390 . . 75 103 . Siege Activations . | . . . . . . . Martial Activations . | . . . . . . . Shielding Activations . | . . . . . . . Robots Disrupted . | . . . . . . . Combat Hostiles . | . . . . . . . Robots Corrupted . | . . . . . . . Combat Hostiles . | . . . . . . . Parts Fried . | . . . . . . . Impact Corruptions . | . . . . . . . Robots Melted . | . . . . . . . Combat Hostiles . | . . . . . . . Parts Melted . | . . . . . . . Heat Transferred . | . . . . . . . Parts Sabotaged . | . . . . . . . Parts Stolen . | . . . . . . . Parts Stripped . | . . . . . . . Power Chain Reactions . | . . . . . . . Alert | -11 -10 -10 -10 -9 -8 -7 ------- Run | Yrd Mat Min Exi Min Mat Fac Maximum Alert Level . | . . . . . . . Low Security (%) 100 | 100 100 100 . 100 100 100 Level 1 . | . . . . . . . Level 2 . | . . . . . . . Level 3 . | . . . . . . . Level 4 . | . . . . . . . Level 5 . | . . . . . . . High Security . | . . . . . . . Max Security . | . . . . . . . Peak Influence 166 | . 166 11 . 40 80 34 Initial 34 | . . 11 . . . 34 Average 19 | . 38 . . 4 18 2 Influence Increases 760 | . 411 . . 50 271 28 Destroy 0b10 Robot/C 520 | . 300 . . 40 160 20 Destroy 0b10 Robot/NC 50 | . 25 . . . 25 . Destroy Leader 132 | . 66 . . 10 56 . Successful Hack 12 | . 4 . . . . 8 Disable Machine 30 | . . . . . 30 . Destroy Structure 1 | . 1 . . . . . Lose Combat Pursuer 15 | . 15 . . . . . Influence Decreases 760 | . 381 30 . 50 195 104 Entered New Map 61 | . . 19 . . . 42 Time Decay 664 | . 366 11 . 40 185 62 Lost Part 35 | . 15 . . 10 10 . Squads Dispatched 8 | . 3 . . . 3 2 Investigation 4 | . 2 . . . 2 . Extermination 2 | . . . . . . 2 Reinforcement 2 | . 1 . . . 1 . Assault . | . . . . . . . Garrison . | . . . . . . . Intercept . | . . . . . . . Searches Triggered . | . . . . . . . Construction Impeded . | . . . . . . . Haulers Reinforced . | . . . . . . . Active Scanning Responses . | . . . . . . . Cargo Convoy Interrupts . | . . . . . . . Stealth | -11 -10 -10 -10 -9 -8 -7 --------- Run | Yrd Mat Min Exi Min Mat Fac Distress Signals 4 | . 1 . . . 3 . Communications Jammed . | . . . . . . . Distress Signals . | . . . . . . . Times Spotted 53 | . 21 . . 2 24 6 Peak Tracking Total 6 | . 5 . . 2 6 2 Tactical Retreats 6 | . 1 . . . 5 . Traps | -11 -10 -10 -10 -9 -8 -7 ------- Run | Yrd Mat Min Exi Min Mat Fac Traps Triggered 5 | . 1 . . . 3 1 Indirectly . | . . . . . . . Trap Hack Attempts . | . . . . . . . Triggered . | . . . . . . . Disarmed 12 | . . . . . . 12 Reprogrammed . | . . . . . . . Reused . | . . . . . . . Traps Extracted . | . . . . . . . Installed . | . . . . . . . Triggered . | . . . . . . . Machines | -11 -10 -10 -10 -9 -8 -7 ---------- Run | Yrd Mat Min Exi Min Mat Fac Machines Disabled 2 | . . . . . 2 . Max in Single Turn 1 | . . . . . 1 . Machines Repaired . | . . . . . . . Machines Dismantled . | . . . . . . . Machines Sabotaged . | . . . . . . . Overloaded Fab Kills . | . . . . . . . Hacking | -11 -10 -10 -10 -9 -8 -7 --------- Run | Yrd Mat Min Exi Min Mat Fac Machines Accessed 6 | . 3 . 1 . . 2 Terminals 3 | . 2 . . . . 1 Fabricators 1 | . . . . . . 1 Repair Stations 1 | . 1 . . . . . Recycling Units . | . . . . . . . Scanalyzers . | . . . . . . . Garrison Access . | . . . . . . . Total Hacks 21 | . 13 . 1 . . 7 Successful 14 | . 6 . 1 . . 7 Failed 7 | . 7 . . . . . Catastrophic . | . . . . . . . Database Lockouts . | . . . . . . . Manual 1 | . . . 1 . . . Terminals 11 | . 5 . . . . 6 Fabricators 1 | . . . . . . 1 Repair Stations 8 | . 8 . . . . . Recycling Units . | . . . . . . . Scanalyzers . | . . . . . . . Garrison Access . | . . . . . . . Terminal Hacks 10 | . 3 . 1 . . 6 Emergency Access Points 1 | . . . . . . 1 Locate Traps 2 | . 1 . . . . 1 Disarm Traps 3 | . . . . . . 3 Hauler Manifests 1 | . 1 . . . . . Zone Layout 2 | . 1 . . . . 1 Proto ID Catalog 1 | . . . 1 . . . Fabricator Hacks 1 | . . . . . . 1 Build 1 | . . . . . . 1 Repair Station Hacks 3 | . 3 . . . . . Scan Component 2 | . 2 . . . . . Repair 1 | . 1 . . . . . Recycling Unit Hacks . | . . . . . . . Scanalyzer . | . . . . . . . Garrison Access Hacks . | . . . . . . . Unauthorized Hacks . | . . . . . . . Terminals . | . . . . . . . Fabricators . | . . . . . . . Repair Stations . | . . . . . . . Recycling Units . | . . . . . . . Scanalyzers . | . . . . . . . Garrison Access . | . . . . . . . Data Cores Recovered 1 | . 1 . . . . . Used . | . . . . . . . Hacking Detections 2 | . 2 . . . . . Full Trace Events 1 | . 1 . . . . . Feedback Events . | . . . . . . . Feedback Blocked . | . . . . . . . Robot Schematics Acquired . | . . . . . . . Robots Built . | . . . . . . . Authchips . | . . . . . . . Time . | . . . . . . . Total Robot Build Rating . | . . . . . . . Part Schematics Acquired . | . . . . . . . Parts Built 2 | . . . . . . 2 Authchips . | . . . . . . . Time 117 | . . . . . . 117 Total Part Build Rating 14 | . . . . . . 14 Parts Repaired 1 | . 1 . . . . . Time 36 | . 36 . . . . . Parts Recycled . | . . . . . . . Recycled Matter . | . . . . . . . Retrieved Matter . | . . . . . . . Retrieved Components . | . . . . . . . Parts Scanalyzed . | . . . . . . . Part Schematics Acquired . | . . . . . . . Parts Damaged . | . . . . . . . Bothacking | -11 -10 -10 -10 -9 -8 -7 ------------ Run | Yrd Mat Min Exi Min Mat Fac Used RIF Installer . | . . . . . . . Robots Hacked . | . . . . . . . Non-combat . | . . . . . . . Combat . | . . . . . . . Robot Hacks Applied . | . . . . . . . Relay Couplers Released . | . . . . . . . Fabnet Peak Effective % . | . . . . . . . Robots Rewired . | . . . . . . . Allies Hacked . | . . . . . . . Hacks Repelled . | . . . . . . . Allies | -11 -10 -10 -10 -9 -8 -7 -------- Run | Yrd Mat Min Exi Min Mat Fac Total Allies 1 | . . 1 . . . . Largest Group 1 | . . 1 1 . . . Highest-Rated Group 31 | . . 31 31 . . . Highest-Rated Ally 31 | . . 31 31 . . . Total Orders . | . . . . . . . Ally Attacks . | . . . . . . . Total Damage . | . . . . . . . Kills . | . . . . . . . Allies Corrupted . | . . . . . . . Allies Melted . | . . . . . . . Intel | -11 -10 -10 -10 -9 -8 -7 ------- Run | Yrd Mat Min Exi Min Mat Fac Active Infowar (turns) 4203 | . 937 431 272 353 1385 825 Sensors 2 | . . . . . 2 . Structural 4203 | . 937 431 272 353 1385 825 ECM 2210 | . . . . . 1385 825 Robot Analysis Total . | . . . . . . . Derelict Logs Recovered 1 | . . 1 . . . . Drone Launches . | . . . . . . . Drone Recoveries . | . . . . . . . Exploration | -11 -10 -10 -10 -9 -8 -7 ------------- Run | Yrd Mat Min Exi Min Mat Fac Turns Passed 4856 | 30 1550 431 272 353 1385 835 Spaces Moved 2752 | 33 797 238 209 339 583 553 Core 31 | 31 . . . . . . Treads 1151 | 2 797 238 114 . . . Legs 1570 | . . . 95 339 583 553 Wheels . | . . . . . . . Hover . | . . . . . . . Flight . | . . . . . . . Fastest Speed 50 | 50 160 160 90 90 90 90 Average Speed 118 | 56 160 160 128 90 90 90 Slowest Speed 160 | 160 160 160 160 90 90 90 Overloaded Moves . | . . . . . . . Propulsion Burnouts . | . . . . . . . Robots Hopped . | . . . . . . . Potential Cave-ins . | . . . . . . . Cave-ins Triggered . | . . . . . . . Exploration Rate (%) 50 | 3 95 58 60 69 51 17 Regions Visited 6 Branch Regions 3 Pre-discovered Areas . | . . . . . . . Known Exits Taken . | . . . . . . . Unknown Exits Taken 6 | 1 1 1 1 1 1 . Scrap Searched 3 | . . 1 . 2 . . Spaces Dug . | . . . . . . . Terrain Destroyed . | . . . . . . . Melee . | . . . . . . . Projectile . | . . . . . . . AOE . | . . . . . . . Terrain Rammed . | . . . . . . . Walls Destroyed . | . . . . . . . Machines Disabled . | . . . . . . . Actions | -11 -10 -10 -10 -9 -8 -7 --------- Run | Yrd Mat Min Exi Min Mat Fac Total 4126 | 44 967 289 211 376 1376 863 Wait 1182 | . 95 49 . 28 737 273 Move 2746 | 32 796 237 208 338 582 553 Hop . | . . . . . . . Pick Up 33 | 6 12 2 1 2 5 5 Fast Attach 4 | . . . 1 . . 3 Attach 22 | 6 4 . . 1 5 6 Detach 3 | . . . . . 1 2 Swap 12 | . 5 . 1 1 5 . Drop 11 | . 3 1 . 1 3 3 Fire 113 | . 52 . . 5 38 18 Melee . | . . . . . . . Ram . | . . . . . . . Kick . | . . . . . . . Crush . | . . . . . . . Escape Stasis . | . . . . . . . Rewire . | . . . . . . . Trap . | . . . . . . . Miscellaneous . | . . . . . . . Route ------- -11/Scrapyard -10/Materials (discovered 5 exits: [*Mat x3] / [*Min] / [Sub]) -10/Mines (discovered 3 exits: [*Mat] / *Exi / [*Sub]) -10/Exiles -9/Mines -8/Materials (discovered 2 exits: *Fac x2) -7/Factory History --------- Turn | Location | Event 14 | -11/Scrapyard | Discovered new exit (range 16) 31 | -11/Scrapyard | Entered Materials 219 | -10/Materials | Discovered new exit (range 15) 309 | -10/Materials | Build established: Mutant 524 | -10/Materials | Repaired Broken Lgt. Treads 666 | -10/Materials | Discovered new exit (range 3) 1436 | -10/Materials | Discovered new exit (range 4) 1508 | -10/Materials | Discovered new exit (range 5) 1551 | -10/Materials | Discovered new exit (range 16) 1581 | -10/Materials | Entered Mines 1610 | -10/Mines | Discovered new exit (range 9) 1616 | -10/Mines | Received a Rocket Launcher from a helpful Derelict 1751 | -10/Mines | Discovered new exit (range 7) 1855 | -10/Mines | Received a Mining Laser from a helpful Derelict 1937 | -10/Mines | A weapon hastily lodged in a ceiling crevice suddenly fell to the ground 1947 | -10/Mines | Learned Materials garrison access intel 2004 | -10/Mines | Deemed a non-threat by the Exiles lab entrance 2004 | -10/Mines | Discovered new exit (range 6) 2012 | -10/Mines | Entered Exiles 2012 | -10/Exiles | Accompanied by 1 ally 2051 | -10/Exiles | Met 8R-AWN 2080 | -10/Exiles | Met EX-HEX 2121 | -10/Exiles | Met EX-BIN 2144 | -10/Exiles | Aligned with FarCom system 2145 | -10/Exiles | Given EX-Vault access code 2182 | -10/Exiles | Opened EX-Vault 2193 | -10/Exiles | Found Potential Leg 2196 | -10/Exiles | Found Potential Leg 2217 | -10/Exiles | Warned to stay clear of 0b10 Research branches 2242 | -10/Exiles | Met EX-DEC 2273 | -10/Exiles | Discovered new exit (range 14) 2284 | -10/Exiles | Left Exiles lab with Potential Leg 2284 | -10/Exiles | Entered Mines 2330 | -9/Mines | Found a damaged Exp. Sensor Array with a note attached 2332 | -9/Mines | Found Prototype Device 2608 | -9/Mines | Found a hidden stash of uninstalled traps 2631 | -9/Mines | Discovered new exit (range 6) 2637 | -9/Mines | Entered Materials 2637 | -8/Materials | Evolved 4 slots: Power x1, Utility x2, Weapon x1 2638 | -8/Materials | Loaded intel: 1 garrison access location 2638 | -8/Materials | Identified Exp. Sensor Array 2938 | -8/Materials | Build established: Infiltrator-Skirmisher 3303 | -8/Materials | Discovered new exit (range 4) 4003 | -8/Materials | Discovered new exit (range 16) 4022 | -8/Materials | Entered Factory 4022 | -7/Factory | Evolved 2 slots: Utility x2 4186 | -7/Factory | Fabricated Adv. Hardlight Generator (x2) 4359 | -7/Factory | Lost 4 parts (2p2w) 4609 | -7/Factory | Build established: Infiltrator-Mutant 4857 | -7/Factory | Self-destructed Last Messages --------------- >>Traps(Disarm) Disarmed 6 Heavy Explosive Traps. >>Traps(Disarm) No traps found in local area. K-01 Serf cleans the Assembly Bed. Acquired Prototype Ballistic Gun. Identified Prc. Assault Rifle. K-01 Serf cleans the Assembly Bed. K-01 Serf cleans the Construction Platform. ALERT: Potential suspicious activity detected, Programmers report to Factory Zone 7E. K-01 Serf cleans the Assembly Bed. K-01 Serf cleans the Pressure Siphon. M-28 Smith repairs P-60 Hacker Shock Rifle. K-01 Serf cleans the Assembly Bed. System corrupted: Component data lost. K-01 Serf cleans the Assembly Bed. ALERT: Potential suspicious activity detected, Programmers report to Factory Zone 2Q. Assault Rifle destroyed. Map ----- +----------------------------------------------------+ | """ ##???## """" + # ## | | """ ##???## """" # # ## | | ##???## """" ###+##########+#+##### | | """ ##???## ##### | | """ ##???### """" ################# ##??? | | """ ##???### """" ################# # ??? | | ##????## """" #### """" +^ # ??? | | """ ##????## """" #### ""R" #^^ ^^# ??? | | """ ##????## """" #### "" " # # ??? | | """ ##????## """" #### # # ??? | | ##????## #### # # ??? | | ########????## #### # # ??? | | ########????## / + # ??? | | ????????????## ######### """"""" # + ??? | | ############## ######### """"""" # ##??? | | ############### #########w """"""" # # ??? | | h + """"""" # # ??? | | ########+## # / # ??? | | #### # #########+#### # ??? | | #### # ######### #### # ??? | | ### #### + ##???????????? ??????? | | # #### " " ## #####p##?????????????????????? | | # #### "R" !## ##### ##?????????????????????? | | # #### """ ## ##?## ##?????????????????????? | | # ########/###/##+##?## ##?????????????????????? | | + #### ##?##@##?????????????????????? | | # #### ##?## ##?????????????????????? | | # #### ##?## ##?????????????????????? | | ! # #### ##?## ##?????????????????????? | | ### #### """ """ ##?## ##?????????????????????? | | ### #### """ """ ##?## ##?????????????????????? | | ### #### """ """ ##?## ##?????????????????????? | | ### #### ##?## ##?????????????????????? | | ### #### """ """ ##?## ##?????????????????????? | | ### #### """ """ ##?## ##?????????????????????? | | ###/#### """ """ + ? ?????????????????????? | | #### # ?? ????????????????? | | """ ##########+###### ????????????????? | | """ ######## ????????????????? | | """ ##????## ????????????????? | | "" ######## """"""""" """""""??????????????????? | | "" ######## ???s?s???????????????? | | + """"""""" """"?????????????????????? | | # ????????????????????? | | ##### """"""""" """??????????????????????? | | ????????????????????????? | | """""""?"??????????????????????????? | | ???????????????????????????????????? | | ???????????????????????????????????? | | ???????????????????????????????????? | +----------------------------------------------------+ Best States ------------- Heat Dissipation 34 Energy Generation 23 Energy Capacity 290 Matter Stores 300 Matter Capacity 300 Sight Range 16 Robot Scan Range 20 Terrain Scan Density 10 ECM Strength 1 Propulsion Shielding 33 Evasion (%) 57 Recoil Reduction 2 Offensive Hacking 10 Item Schematics ----------------- None Robot Schematics ------------------ None Fabricated ------------ Adv. Hardlight Generator | x2 | -7/Factory | Preloaded Repaired ---------- Lgt. Treads | 60% | -10/Materials | Broken Alien Tech Used ----------------- None Achievements -------------- Just What I Needed Challenges ------------ None Game ------ Seed AntimatterGravitonWheel Manual? 0 Play Time 00:33:15 Cumulative 26.0 hours Start 2025.09.13 @ 22:53:50 End 2025.09.14 @ 14:00:38 Sessions 3 Manual Loads 0 Difficulty Rogue Special Mode None Game No. 55 Rogue 55 Adventurer 0 Explorer 0 Win Type - Total 0 Types 0/0/0/0/0/0/0/0/0/0 Lore% 21 Gallery% 20 Achievement% 17 Wizard Run 0 Options --------- Layout 1 ASCII 0 Keyboard 0 Movement Mouse Keybinds 0 Fullscreen 2 Font 24/Smallcaps Map View 50x35 Zoom Use 0% Tactical HUD 0 Map Filters NONE Filters NONE Steam 1 RUN: 6db29c44-e243-4a57-be31-0eb720beff84